Cogmind - Beta 14 @@@ ROGUE MODE // 2024.12.09 @ 22:29:19 Player: iris Result: Destroyed by G-47 Trooper with Particle Gun Performance ------------- Evolutions (0) 0 Regions Visited (1) 200 Robots Destroyed (6) 30 Value Destroyed (99) 99 Prototype IDs (0) 0 Alien Tech Used (0) 0 Bonus (0) 0 TOTAL SCORE: 329 Bonus ------- None Cogmind --------- Core Integrity 0/250 Matter 20/300 Energy 94/100 System Corruption 0% Temperature Cool (9) Movement Core (400) Ox7 Location -10/Materials Parts ------- > --- POWER (1) -------- (None) > --- PROPULSION (2) --- (None) > --- UTILITY (2) ------ Large Storage Unit ECM Suite > --- WEAPON (2) ------- (None) > --- INVENTORY (15) --- Light Ion Engine Aluminum Leg Aluminum Leg Flight Unit Flight Unit High-capacity Battery (250) Light Assault Rifle Peak State ------------ > --- POWER ------------ Ion Engine > --- PROPULSION ------- Aluminum Leg Aluminum Leg > --- UTILITY ---------- Large Storage Unit Hardened Light Armor Plating > --- WEAPON ----------- Grenade Launcher Mining Laser > --- INVENTORY -------- Light Ion Engine High-capacity Battery ECM Suite Light Assault Rifle [Rating: 8] Favorites ----------- Power Ion Engine Engine Ion Engine Propulsion Aluminum Leg Leg Aluminum Leg Wheel Compact Wheel Flight Unit Flight Unit Utility Large Storage Unit Device ECM Suite Storage Large Storage Unit Protection Hardened Light Armor Plating Weapon Grenade Launcher Ballistic Gun Light Assault Rifle Launcher Grenade Launcher Special Weapon Mining Laser Build | -11 -10 ------- Run | Yrd Mat Slots Evolved . | . . Power . | . . Propulsion . | . . Utility . | . . Weapon . | . . Parts Attached 27 | 9 18 Power 1 | 1 . Engine 1 | 1 . Core . | . . Reactor . | . . Propulsion 11 | 5 6 Treads . | . . Leg 5 | 2 3 Wheel 5 | 3 2 Hover . | . . Flight 1 | . 1 Utility 10 | 1 9 Device 3 | . 3 Storage 5 | 1 4 Processor . | . . Hackware . | . . Protection 2 | . 2 Artifact . | . . Weapon 5 | 2 3 Energy Gun . | . . Energy Cannon . | . . Ballistic Gun 2 | 2 . Ballistic Cannon . | . . Launcher 2 | . 2 Special Weapon 1 | . 1 Impact Weapon . | . . Slashing Weapon . | . . Piercing Weapon . | . . Special Melee Weapon . | . . Unidentified Prototypes . | . . Parts Lost 3 | . 3 Power 1 | . 1 Propulsion . | . . Utility . | . . Weapon 2 | . 2 Highest Loss Streak 2 | . 2 To Critical Strikes . | . . Average Slot Usage (%) 91 | . 91 Engine 13 | . 13 Leg 23 | . 23 Device 9 | . 9 Storage 14 | . 14 Protection 3 | . 3 Launcher 13 | . 13 Special Weapon 10 | . 10 Peak Build Rating 8 | 6 8 Average Rating 6 | 3 6 On Entrance 3 | . 6 Naked Turns . | . . Heaviest Build 34 | 13 34 Greatest Support 26 | 26 26 Greatest Overweight (x) 9 | 4 9 Average Overweight (x) 1 | . 1 Largest Inventory Capacity 15 | 8 15 Average Capacity 13 | 6 14 Most Carried 7 | 5 7 Average Carried 3 | 2 3 Final Capacity 15 | 8 15 Final Carried 7 | 3 7 Class Distribution -------------------- 100% | Mutant Dominant Class ---------------- Mutant | -10/Materials Resources | -11 -10 ----------- Run | Yrd Mat Matter Collected 239 | 206 33 Remotely . | . . Salvage Created 49 | . 49 Parts 11 | . 11 Haulers Intercepted . | . . Recyclers Shooed . | . . Parts Field Recycled . | . . Retrieved Matter . | . . Parts Self-Destructed . | . . Prevented . | . . Kills | -11 -10 ------- Run | Yrd Mat Combat Hostiles Destroyed 5 | . 5 Cannons 1 | . 1 AOE 4 | . 4 Classes Destroyed 3 | . 3 Worker 1 | . 1 Swarmer 3 | . 3 Grunt 2 | . 2 Best Kill Streak 4 | . 4 Combat Bots Only 3 | . 3 Max Kills in Single Turn 3 | . 3 Gunslinging . | . . Exploded 2 | . 2 Melee . | . . Uniques/NPCs Destroyed . | . . Combat | -11 -10 -------- Run | Yrd Mat Hostile Shots Fired 73 | . 73 Missed 23 | . 23 Damage Taken 603 | . 603 Core 255 | . 255 Absorbed by Shields . | . . Core Remaining (%) 100 | 100 . Volleys Fired 26 | . 26 Largest 1 | . 1 Hottest 100 | . 100 Shots Fired 26 | . 26 Gun . | . . Cannon . | . . Launcher 7 | . 7 Special 19 | . 19 Kinetic . | . . Thermal 19 | . 19 Explosive 7 | . 7 Electromagnetic . | . . Robot Hit Streak 2 | . 2 Robot Miss Streak 4 | . 4 Penetration Max . | . . Secondary Targets . | . . Shots Hit Robots 3 | . 3 Core Hits 9 | . 9 Critical Kills . | . . Critical Parts Destroyed . | . . Critical Strikes . | . . Melee Attacks . | . . Impact . | . . Slashing . | . . Piercing . | . . Sneak Attacks . | . . Combat Hostiles . | . . Follow-up Attacks . | . . Damage Inflicted 444 | . 444 Guns . | . . Cannons . | . . Explosions 420 | . 420 Melee . | . . Ramming . | . . Kinetic . | . . Thermal 24 | . 24 Explosive 420 | . 420 Electromagnetic . | . . Impact . | . . Slashing . | . . Piercing . | . . Highest Corruption . | . . Average Corruption . | . . Corruption Purged . | . . Corruption Blocked . | . . Overload Shots . | . . Overflow Damage 9 | . 9 Projectiles . | . . Explosions 9 | . 9 Melee . | . . Knockbacks . | . . Impact . | . . Kinetic . | . . Secondary . | . . Self-Inflicted Damage 67 | . 67 Shots 2 | . 2 Rammed 1 | . 1 Targets Rammed 2 | . 2 Kicked 1 | . 1 Crushed . | . . Highest Temperature 120 | . 120 Average Temperature 31 | . 31 Received Heat Transfer 213 | . 213 Siege Activations . | . . Robots Corrupted . | . . Combat Hostiles . | . . Parts Fried . | . . Impact Corruptions . | . . Robots Melted . | . . Combat Hostiles . | . . Parts Melted . | . . Heat Transferred 50 | . 50 Parts Sabotaged . | . . Parts Stolen . | . . Parts Stripped . | . . Power Chain Reactions . | . . Alert | -11 -10 ------- Run | Yrd Mat Peak Influence 156 | . 156 Initial . | . . Average 29 | . 32 Maximum Alert Level . | . . Low Security (%) 100 | 100 100 Level 1 . | . . Level 2 . | . . Level 3 . | . . Level 4 . | . . Level 5 . | . . High Security . | . . Max Security . | . . Squads Dispatched 2 | . 2 Investigation 1 | . 1 Extermination . | . . Reinforcement 1 | . 1 Assault . | . . Garrison . | . . Intercept . | . . Searches Triggered . | . . Construction Impeded . | . . Haulers Reinforced . | . . Active Scanning Responses . | . . Cargo Convoy Interrupts . | . . Stealth | -11 -10 --------- Run | Yrd Mat Distress Signals . | . . Communications Jammed . | . . Distress Signals . | . . Times Spotted 15 | . 15 Peak Tracking Total 4 | . 4 Tactical Retreats 1 | . 1 Traps | -11 -10 ------- Run | Yrd Mat Traps Triggered 1 | . 1 Indirectly . | . . Trap Hack Attempts . | . . Triggered . | . . Disarmed . | . . Reprogrammed . | . . Reused . | . . Traps Extracted . | . . Installed . | . . Triggered . | . . Machines | -11 -10 ---------- Run | Yrd Mat Machines Disabled . | . . Max in Single Turn . | . . Machines Repaired . | . . Machines Dismantled . | . . Machines Sabotaged . | . . Overloaded Fab Kills . | . . Hacking | -11 -10 --------- Run | Yrd Mat Machines Accessed . | . . Terminals . | . . Fabricators . | . . Repair Stations . | . . Recycling Units . | . . Scanalyzers . | . . Garrison Access . | . . Total Hacks . | . . Successful . | . . Failed . | . . Catastrophic . | . . Database Lockouts . | . . Manual . | . . Terminals . | . . Fabricators . | . . Repair Stations . | . . Recycling Units . | . . Scanalyzers . | . . Garrison Access . | . . Terminal Hacks . | . . Fabricator Hacks . | . . Repair Station Hacks . | . . Recycling Unit Hacks . | . . Scanalyzer . | . . Garrison Access Hacks . | . . Unauthorized Hacks . | . . Terminals . | . . Fabricators . | . . Repair Stations . | . . Recycling Units . | . . Scanalyzers . | . . Garrison Access . | . . Data Cores Recovered . | . . Used . | . . Hacking Detections . | . . Full Trace Events . | . . Feedback Events . | . . Feedback Blocked . | . . Robot Schematics Acquired . | . . Robots Built . | . . Authchips . | . . Time . | . . Total Robot Build Rating . | . . Part Schematics Acquired . | . . Parts Built . | . . Authchips . | . . Time . | . . Total Part Build Rating . | . . Parts Repaired . | . . Time . | . . Parts Recycled . | . . Recycled Matter . | . . Retrieved Matter . | . . Retrieved Components . | . . Parts Scanalyzed . | . . Part Schematics Acquired . | . . Parts Damaged . | . . Bothacking | -11 -10 ------------ Run | Yrd Mat Used RIF Installer . | . . Robots Hacked . | . . Non-combat . | . . Combat . | . . Robot Hacks Applied . | . . Relay Couplers Released . | . . Fabnet Peak Effective % . | . . Robots Rewired . | . . Allies Hacked . | . . Hacks Repelled . | . . Allies | -11 -10 -------- Run | Yrd Mat Total Allies . | . . Largest Group . | . . Highest-Rated Group . | . . Highest-Rated Ally . | . . Total Orders . | . . Ally Attacks . | . . Total Damage . | . . Kills . | . . Allies Corrupted . | . . Allies Melted . | . . Intel | -11 -10 ------- Run | Yrd Mat Robot Analysis Total . | . . Derelict Logs Recovered . | . . Drone Launches . | . . Drone Recoveries . | . . Exploration | -11 -10 ------------- Run | Yrd Mat Turns Passed 908 | 81 827 Spaces Moved 399 | 69 330 Core 66 | 41 25 Treads . | . . Legs 323 | 21 302 Wheels 9 | 7 2 Hover . | . . Flight 1 | . 1 Fastest Speed 50 | 50 90 Average Speed 186 | 90 206 Slowest Speed 600 | 250 600 Overloaded Moves . | . . Propulsion Burnouts . | . . Robots Hopped . | . . Cave-ins Triggered . | . . Exploration Rate (%) 24 | 4 44 Regions Visited 1 Branch Regions . Pre-discovered Areas . | . . Known Exits Taken . | . . Unknown Exits Taken 1 | 1 . Scrap Searched . | . . Spaces Dug 11 | . 11 Terrain Destroyed 52 | . 52 Melee . | . . Projectile 13 | . 13 AOE 39 | . 39 Terrain Rammed . | . . Walls Destroyed . | . . Machines Disabled . | . . Actions | -11 -10 --------- Run | Yrd Mat Total 503 | 89 414 Wait 3 | . 3 Move 398 | 68 330 Hop . | . . Pick Up 23 | 9 14 Fast Attach . | . . Attach 19 | 9 10 Detach 13 | 3 10 Swap 8 | . 8 Drop 11 | . 11 Fire 26 | . 26 Melee . | . . Ram 1 | . 1 Kick 1 | . 1 Crush . | . . Escape Stasis . | . . Rewire . | . . Trap . | . . Miscellaneous . | . . Route ------- -11/Scrapyard -10/Materials (discovered 1 exit: [*Mat]) History --------- Turn | Location | Event 11 | -11/Scrapyard | Discovered new exit (range 14) 82 | -11/Scrapyard | Entered Materials 306 | -10/Materials | Build established: Mutant 733 | -10/Materials | Discovered new exit (range 13) 886 | -10/Materials | Core integrity fell below 50% 904 | -10/Materials | Core integrity fell below 20% 909 | -10/Materials | Destroyed by G-47 Trooper with Particle Gun Last Messages --------------- 00781_ U-05 Engineer builds a Wall. 00784_ U-05 Engineer lays Concrete. 00785_ U-05 Engineer builds a Door. 00786_ U-05 Engineer builds a Wall. [Achievement: Oops] 00789_ U-05 Engineer builds a Wall. 00791_ U-05 Engineer lays Concrete. 00793_ U-05 Engineer builds a Wall. 00798_ U-05 Engineer lays Concrete. 00811_ U-05 Engineer builds a Door. 00811_ U-05 Engineer lays Concrete. 00817_ Slammed into U-05 Engineer. 00837_ K-01 Serf collects debris. 00837_ U-05 Engineer lays Concrete. 00841_ T-07 Excavator is excavating. 00883_ Ion Engine destroyed. 00887_ Grenade Launcher destroyed. 00899_ Critical hit (Burn: +37). 00903_ Processing Tank comes online. 00909_ U-05 Engineer lays Concrete. Map ----- +----------------------------------------------------+ | ?????????????????????????????????? | | ?????????????????????????????????? | | ?????????????????????????????????? | | ?????????????????????????????????? | | ?????????????????????????????????? | | ?????????????????????????????????? | | ?????????????????????????????????? | | ?????????????????????????????????? | | ?????????????????????????????????? | | ?????????????????????????????????? | | ?????????????????????????????????? | | ?????????????????????????????????? | | ?????????????????????????????????? | | ???????##########????????????????? | | ??????# #????????????????? | | ??????# ! #????????????????? | | ??????# !!! ?????????????????? | | ??????# !! ?????????????????? | | ??????# !! """ ?????????????????? | | ??????# ""???????????????????? | | ??????# ?????????????????????? | | ??????# ???????????????????????? | | ??????#+###+##??###??????????????? | | ??????# ## #??????????? | | ???#### g + """??????????????? | | ???# # @ ## """??????????????? | | ???#utuu g #???????????????????? | | ???# # #???????????????????? | | ???#### # t#??????????????????? | | ??????# # ??????????????? | | ??????# # ???????????? | | ??????# # ???????????? | | ??????# # ##+####????????????? | | ??????# # ###??????????????????? | | ??????# # #????????????????????? | | ??????# # #????????????????????? | | ??????# # #????????????????????? | | ??????# # ###???#######????????? | | ??????# # ####### ]#????????? | | ?######+# #????????? | | ?# ^ # #????????? | | ?# # #????????? | | ?# """ + ####### #????????? | | ?# """ # # #??### ##????????? | | ?# """ # #????# #?????????? | | ?# # ###????# #?????????? | | ?######## #??????# #?????????? | | ????????# #??????# ########### | | ????????# #????### [ # | | ???????? #????#"" # | +----------------------------------------------------+ Best States ------------- Heat Dissipation 25 Energy Generation 10 Energy Capacity 250 Matter Stores 216 Matter Capacity 300 Sight Range 16 Terrain Scan Density 10 ECM Strength 1 Armor Coverage 150 Evasion (%) 55 Item Schematics ----------------- None Robot Schematics ------------------ None Fabricated ------------ Nothing Alien Tech Used ----------------- None Achievements -------------- Let's See Who's Tougher Oops Challenges ------------ None Game ------ Seed MinesnifferBeamImmobilizer Manual? 0 Play Time 00:26:28 Cumulative 2.4 hours Start 2024.12.09 @ 21:50:34 End 2024.12.09 @ 22:29:19 Sessions 1 Manual Loads 0 Difficulty Rogue Special Mode None Game No. 4 Rogue 4 Adventurer 0 Explorer 0 Win Type - Total 0 Types 0/0/0/0/0/0/0/0/0 Lore% 1 Gallery% 4 Achievement% 6 Wizard Run 0 Options --------- Layout 1 ASCII 0 Keyboard 1 Movement Numpad Keybinds 0 Fullscreen 2 Font 32/SmallcapsGlow Map View 50x35 Zoom Use 0% Tactical HUD 1 Map Filters NONE Filters NONE Steam 1 RUN: 86097d5f-9627-416a-985d-b20967454e26